bitfinex-derivatives/quotes_BTCF0:USTF0_20240825
["timestamp","ask_amount","ask_price","bid_price","bid_amount"]
[1724616869823,0.3608,64264.0,64262.0,0.077766]
[1724616870024,0.3608,64264.0,64263.0,0.16758183]
[1724616870621,0.3608,64264.0,64263.0,0.16798183]
[1724616871222,0.3618,64264.0,64263.0,0.16798183]
[1724616871619,0.3618,64264.0,64263.0,0.28649098]
[1724616871819,0.3618,64264.0,64263.0,0.24574783]
[1724616872122,0.3628,64264.0,64263.0,0.24574783]
[1724616872323,0.3628,64264.0,64263.0,0.36425698]
[1724616872523,0.3618,64264.0,64263.0,0.37025698]
[1724616872715,0.3628,64264.0,64263.0,0.37825698]
[1724616872916,0.002,64264.0,64263.0,0.37825698]
[1724616873113,0.3628,64264.0,64263.0,0.37825698]
[1724616873316,0.40088216,64264.0,64263.0,0.182166]
[1724616875011,0.3628,64264.0,64263.0,0.182166]
[1724616876912,0.002,64264.0,64263.0,0.182166]
[1724616877417,0.12632621,64264.0,64263.0,0.182166]
[1724616880330,0.002,64264.0,64263.0,0.30067351]
[1724616880620,0.002,64264.0,64263.0,0.25976549]
[1724616884023,0.002,64264.0,64263.0,0.28408162]
[1724616885825,0.002,64264.0,64263.0,0.25976549]
[1724616886023,0.002,64264.0,64263.0,0.28408162]
[1724616886320,0.002,64264.0,64263.0,0.40258873]
[1724616886920,0.002,64264.0,64263.0,0.3782726]
[1724616887116,0.002,64264.0,64263.0,0.40258873]
[1724616889032,0.002,64264.0,64263.0,0.32498924]
[1724616890231,0.002,64264.0,64263.0,0.324989]
[1724616890632,0.002,64264.0,64263.0,0.32498783]
[1724616893641,0.002,64264.0,64263.0,0.3249878]
[1724616893937,0.002,64264.0,64263.0,0.30067194]
[1724616894236,0.002,64264.0,64263.0,0.32498774]
[1724616895447,0.002,64264.0,64263.0,0.2064818]
[1724616895448,0.04008101,64264.0,64263.0,0.2064818]
[1724616896243,0.16440722,64264.0,64263.0,0.2064818]
[1724616896957,0.16440722,64264.0,64263.0,0.20648187]
[1724616897245,0.16440722,64264.0,64263.0,0.20648188]
[1724616898549,0.04008101,64264.0,64263.0,0.20648188]
[1724616899347,0.04008101,64264.0,64263.0,0.182166]
[1724616902241,0.002,64264.0,64263.0,0.182166]
[1724616903456,0.002,64264.0,64263.0,0.31067197]
[1724616904458,0.002,64264.0,64263.0,0.40377017]
[1724616905852,0.002,64264.0,64263.0,0.31067197]
[1724616906249,0.002,64264.0,64263.0,0.33498661]
[1724616907059,0.002,64264.0,64263.0,0.32498661]
[1724616908862,0.002,64264.0,64263.0,0.32498407]
[1724616912055,0.002,64264.0,64263.0,0.33498407]
[1724616913656,0.002,64264.0,64263.0,0.42808828]
[1724616913869,0.002,64264.0,64263.0,0.42808761]
[1724616914860,0.02168151,64269.0,64268.0,0.07776]
[1724616915062,0.38259387,64270.0,64268.0,0.36384531]
[1724616915264,0.38259387,64270.0,64268.0,0.24534316]
[1724616915755,0.38259387,64270.0,64269.0,0.10247269]
[1724616916361,0.36103329,64270.0,64269.0,0.10247269]
[1724616916562,0.36103329,64270.0,64269.0,0.078158]
[1724616916867,0.36103329,64270.0,64269.0,0.10247278]
[1724616918069,0.36103329,64270.0,64269.0,0.080158]
[1724616918478,0.39911237,64270.0,64269.0,0.080158]
[1724616918765,0.39911225,64270.0,64269.0,0.080158]
[1724616919767,0.36103329,64270.0,64269.0,0.10110789]
[1724616919971,0.36103329,64270.0,64269.0,0.12542238]
[1724616921362,0.36103329,64270.0,64269.0,0.10110789]
[1724616926469,0.00023329,64270.0,64269.0,0.10110789]
[1724616926669,0.36103329,64270.0,64269.0,0.10110789]
[1724616930875,0.00023329,64270.0,64269.0,0.10110789]
[1724616931074,0.36103329,64270.0,64269.0,0.10110789]
[1724616933877,0.00023329,64270.0,64269.0,0.10110789]
[1724616934078,0.36103329,64270.0,64269.0,0.10110789]
[1724616934277,0.39911212,64270.0,64269.0,0.10110789]
[1724616935874,0.46990979,64270.0,64269.0,0.10110789]
[1724616936485,0.46990979,64270.0,64269.0,0.12542232]
[1724616936670,0.36103329,64270.0,64269.0,0.12542232]
[1724616936986,0.46990988,64270.0,64269.0,0.12542232]
[1724616937593,0.36103329,64270.0,64269.0,0.12542231]
[1724616937774,0.36103329,64270.0,64269.0,0.10110789]
[1724616937974,0.39911228,64270.0,64269.0,0.10110789]
[1724616938180,0.36103329,64270.0,64269.0,0.12542229]
[1724616938585,0.39911208,64270.0,64269.0,0.12542229]
[1724616939171,0.39911208,64270.0,64269.0,0.10110789]
[1724616940485,0.36103329,64270.0,64269.0,0.10110789]
[1724616942485,0.36103329,64270.0,64269.0,0.17869105]
[1724616942784,0.00023329,64270.0,64269.0,0.17869105]
[1724616942988,0.36103329,64270.0,64269.0,0.17869105]
[1724616943185,0.36103329,64270.0,64269.0,0.10110789]
[1724616943385,0.36103329,64270.0,64269.0,0.17869105]
[1724616943889,0.00023329,64270.0,64269.0,0.17869105]
[1724616944290,0.36103329,64270.0,64269.0,0.29718972]
[1724616945289,0.99559029,64270.0,64269.0,0.19848183]
[1724616945582,0.4668,64269.0,64266.0,0.06210747]
[1724616945885,0.077766,64263.0,64262.0,0.06235364]
[1724616946193,0.077766,64263.0,64262.0,0.00023329]
[1724616946194,0.928566,64263.0,64262.0,0.00023329]
[1724616946486,1.395406,64263.0,64262.0,0.00023329]
[1724616946695,1.395806,64263.0,64262.0,0.00023329]
[1724616947489,1.42585085,64263.0,64262.0,0.00023329]
[1724616947686,1.47495085,64263.0,64262.0,0.00923329]
[1724616948493,1.47595085,64263.0,64262.0,0.01723329]
[1724616950292,1.49723621,64263.0,64262.0,0.01723329]
[1724616950687,1.09723621,64263.0,64262.0,0.01723329]
[1724616951795,0.54039621,64263.0,64262.0,0.01723329]
[1724616952192,0.51035136,64263.0,64262.0,0.01723329]
[1724616953192,0.54039326,64263.0,64262.0,0.01723329]
[1724616954892,0.54039323,64263.0,64262.0,0.01723329]
[1724616955497,0.51035136,64263.0,64262.0,0.01723329]
[1724616959598,0.14955136,64263.0,64262.0,0.01723329]
[1724616959797,0.51035136,64263.0,64262.0,0.01723329]
[1724616961392,0.60035136,64263.0,64262.0,0.01723329]
[1724616961902,0.96115136,64263.0,64262.0,0.01723329]
[1724616962503,0.23955136,64263.0,64262.0,0.01723329]
[1724616962703,0.96115136,64263.0,64262.0,0.01723329]
[1724616963393,0.23955136,64263.0,64262.0,0.01723329]
[1724616963707,0.96115136,64263.0,64262.0,0.01723329]
[1724616963906,0.87115136,64263.0,64262.0,0.09500029]
[1724616964407,0.96115136,64263.0,64262.0,0.01723329]
[1724616972215,0.23955136,64263.0,64262.0,0.01723329]
[1724616972410,0.96115136,64263.0,64262.0,0.01723329]
[1724616972807,0.23955136,64263.0,64262.0,0.01723329]
[1724616973009,0.96115136,64263.0,64262.0,0.01723329]
[1724616973209,0.23955136,64263.0,64262.0,0.01723329]
[1724616973510,0.96115136,64263.0,64262.0,0.01723329]
[1724616973815,1.0387978,64263.0,64262.0,0.01723329]
[1724616974417,0.96115136,64263.0,64262.0,0.01723329]
[1724616974803,1.0388806,64263.0,64262.0,0.01723329]
[1724616975313,0.96115136,64263.0,64262.0,0.01723329]
[1724616981421,0.23955136,64263.0,64262.0,0.01723329]
[1724616981719,0.96115136,64263.0,64262.0,0.01723329]
[1724616985524,0.96115136,64263.0,64248.0,0.077783]
[1724616985525,0.46684,64262.0,64248.0,0.077783]
[1724616985716,0.8116,64249.0,64248.0,0.077783]
[1724616985915,0.84164827,64249.0,64248.0,0.077783]
[1724616986420,0.84204928,64249.0,64248.0,0.077783]
[1724616988016,0.84204928,64249.0,64248.0,0.086783]
[1724616988215,0.84204928,64249.0,64248.0,0.095783]
[1724616988421,0.812,64249.0,64248.0,0.095783]
[1724616988630,0.889783,64249.0,64248.0,0.086783]
[1724616988824,0.890783,64249.0,64248.0,0.095783]
[1724616989219,0.891783,64249.0,64248.0,0.087783]
[1724616990424,0.891783,64249.0,64248.0,0.01]
[1724616991219,0.91317556,64249.0,64248.0,0.01]
[1724616991624,1.45787856,64249.0,64248.0,0.01]
[1724616991820,1.48792926,64249.0,64248.0,0.01]
[1724616992616,1.45787856,64249.0,64248.0,0.01]
[1724616992820,1.45687856,64249.0,64248.0,0.009]
[1724616993028,1.45787856,64249.0,64248.0,0.018]
[1724616993423,1.45787856,64249.0,64248.0,0.016]
[1724616995228,1.45787856,64249.0,64248.0,0.015]
[1724616999628,0.99095856,64249.0,64248.0,0.015]
[1724617000036,0.26935856,64249.0,64248.0,0.015]
[1724617000233,0.99095856,64249.0,64248.0,0.015]
[1724617002631,1.85787856,64249.0,64248.0,0.015]
[1724617003439,1.93554777,64249.0,64248.0,0.015]
[1724617004326,1.85787856,64249.0,64248.0,0.015]
[1724617005532,1.45787856,64249.0,64248.0,0.015]
[1724617006944,1.85787856,64249.0,64248.0,0.015]
[1724617007241,1.45787856,64249.0,64248.0,0.015]
[1724617007442,1.85787856,64249.0,64248.0,0.015]
[1724617008235,1.93548247,64249.0,64248.0,0.015]
[1724617008435,1.85787856,64249.0,64248.0,0.015]
[1724617011340,1.45787856,64249.0,64248.0,0.015]
[1724617011542,0.73627856,64249.0,64248.0,0.015]
[1724617011744,1.45787856,64249.0,64248.0,0.015]
[1724617012848,1.85787856,64249.0,64248.0,0.015]
[1724617013343,1.95108161,64249.0,64248.0,0.015]
[1724617014339,1.85787856,64249.0,64248.0,0.015]
[1724617014744,1.13627856,64249.0,64248.0,0.015]
[1724617015057,1.85787856,64249.0,64248.0,0.015]
[1724617017652,1.88793251,64249.0,64248.0,0.015]
[1724617019055,0.15558,64243.0,64242.0,0.00023329]
[1724617019247,0.60638,64243.0,64242.0,0.00023329]
[1724617019641,0.69965486,64243.0,64242.0,0.00023329]
[1724617019837,0.70005486,64243.0,64242.0,0.00023329]
[1724617020243,0.70105486,64243.0,64242.0,0.00923329]
[1724617020444,0.077802,64233.0,64232.0,0.00012791]
[1724617020638,0.528602,64233.0,64232.0,0.00012791]
[1724617021146,0.529002,64233.0,64232.0,0.00012791]
[1724617021548,0.60672018,64233.0,64232.0,0.00012791]
[1724617021948,0.60672018,64233.0,64232.0,0.00212791]
[1724617021949,0.60772018,64233.0,64232.0,0.00212791]
[1724617022546,0.62329383,64233.0,64232.0,0.00212791]
[1724617023258,0.62429383,64233.0,64232.0,0.00212791]
[1724617023445,0.531002,64233.0,64232.0,0.00212791]
[1724617025449,0.552859,64233.0,64232.0,0.00212791]
[1724617026756,0.913659,64233.0,64232.0,0.00212791]
[1724617030146,0.913659,64233.0,64232.0,9.1e-07]
[1724617030362,0.077803,64232.0,64226.0,0.00023348]
[1724617030564,0.4508,64227.0,64226.0,0.00023348]
[1724617031057,0.4512,64227.0,64226.0,0.00023348]
[1724617031354,0.45135106,64227.0,64226.0,0.00023348]
[1724617031657,0.45135106,64227.0,64226.0,0.00123348]
[1724617031858,0.60696906,64227.0,64226.0,0.00123348]
[1724617032049,0.60696906,64227.0,64226.0,0.00023348]
[1724617032250,0.60696906,64227.0,64226.0,0.00123348]
[1724617033160,0.96776906,64227.0,64226.0,0.00123348]
[1724617033750,1.07976906,64227.0,64226.0,0.00123348]
[1724617034855,1.07976906,64227.0,64226.0,0.00023348]
[1724617035061,1.08176906,64227.0,64226.0,0.00023348]
[1724617036347,1.08276906,64227.0,64226.0,0.00023348]
[1724617039564,1.11283454,64227.0,64226.0,0.00023348]
[1724617039860,1.08276906,64227.0,64226.0,0.00023348]
[1724617041156,1.11283538,64227.0,64226.0,0.00023348]
[1724617041356,1.08276906,64227.0,64226.0,0.00023348]
[1724617043657,1.09049413,64227.0,64226.0,0.00023348]
[1724617044056,1.08276906,64227.0,64226.0,0.00023348]
[1724617044254,1.09036796,64227.0,64226.0,0.00023348]
[1724617044859,1.08276906,64227.0,64226.0,0.00023348]
[1724617045462,1.11283532,64227.0,64226.0,0.00023348]
[1724617045764,1.08276906,64227.0,64226.0,0.00023348]
[1724617046267,0.97076906,64227.0,64226.0,0.00023348]
[1724617051479,0.89296006,64227.0,64226.0,0.00023348]
[1724617052770,0.92302309,64227.0,64226.0,0.00023348]
[1724617052963,1.03190689,64227.0,64226.0,0.00023348]
[1724617053975,0.92302309,64227.0,64226.0,0.00023348]
[1724617054371,0.20142309,64227.0,64226.0,0.00023348]
[1724617054569,0.92302309,64227.0,64226.0,0.00023348]
[1724617055671,0.20142309,64227.0,64226.0,0.00023348]
[1724617055871,0.92302309,64227.0,64226.0,0.00023348]
[1724617057370,1.03185307,64227.0,64226.0,0.00023348]
[1724617058369,0.92302309,64227.0,64226.0,0.00023348]
[1724617058572,1.03190673,64227.0,64226.0,0.00023348]
[1724617059368,0.92302309,64227.0,64226.0,0.00023348]
[1724617060176,0.96113391,64227.0,64226.0,0.00023348]
[1724617060873,0.98633539,64227.0,64226.0,0.00023348]
[1724617062480,0.26473539,64227.0,64226.0,0.00023348]
[1724617062781,0.98633539,64227.0,64226.0,0.00023348]
[1724617063674,0.89296006,64227.0,64226.0,0.00023348]
[1724617063876,0.9863302,64227.0,64226.0,0.00023348]
[1724617064473,0.17136006,64227.0,64226.0,0.00023348]
[1724617064780,0.89296006,64227.0,64226.0,0.00023348]
[1724617067875,0.92302219,64227.0,64226.0,0.00023348]
[1724617068674,0.20142219,64227.0,64226.0,0.00023348]
[1724617068873,0.92302219,64227.0,64226.0,0.00023348]
[1724617072583,0.92302228,64227.0,64226.0,0.00023348]
[1724617075780,1.00890281,64227.0,64226.0,0.00023348]
[1724617076988,0.28730281,64227.0,64226.0,0.00023348]
[1724617077281,0.96113327,64227.0,64226.0,0.00023348]
[1724617077482,1.00890281,64227.0,64226.0,0.00023348]
[1724617077675,1.14900284,64227.0,64226.0,0.00023348]
[1724617078883,1.00890281,64227.0,64226.0,0.00023348]
[1724617079978,0.28730281,64227.0,64226.0,0.00023348]
[1724617080177,0.96113327,64227.0,64226.0,0.00023348]
[1724617080482,1.00890281,64227.0,64226.0,0.00023348]
[1724617081079,1.00890276,64227.0,64226.0,0.00023348]
[1724617082877,1.00083125,64227.0,64226.0,0.00023348]
[1724617085692,1.000835,64227.0,64226.0,0.00023348]
[1724617088582,0.640035,64227.0,64226.0,0.00023348]
[1724617088790,1.0171227,64227.0,64226.0,0.00023348]
[1724617090681,1.01712203,64227.0,64226.0,0.00023348]
[1724617092183,0.33064014,64221.0,64211.0,0.10842035]
[1724617092392,0.8278877,64212.0,64209.0,0.077831]
[1724617092889,0.0162877,64210.0,64209.0,0.077831]
[1724617093093,0.0166877,64210.0,64207.0,0.06212035]
[1724617093295,0.09,64208.0,64207.0,0.06212035]
[1724617093494,0.1062877,64208.0,64207.0,0.06212035]
[1724617093881,0.1066877,64208.0,64207.0,0.13995335]
[1724617094492,0.1076877,64208.0,64207.0,0.13995335]
[1724617095388,0.1076877,64208.0,64207.0,0.06212035]
[1724617095594,0.1076877,64208.0,64206.0,0.06212035]
[1724617095794,0.09,64207.0,64206.0,0.06212035]
[1724617096092,0.1062877,64207.0,64206.0,0.06212035]
[1724617096497,0.1066877,64207.0,64206.0,0.06212035]
[1724617096890,0.1845207,64207.0,64206.0,0.06212035]
[1724617097090,0.1845207,64207.0,64204.0,0.0942]
[1724617097091,0.077835,64206.0,64205.0,0.06212035]
[1724617097291,0.438635,64206.0,64205.0,0.06212035]
[1724617097499,0.4549227,64206.0,64205.0,0.06212035]
[1724617097889,0.4549227,64206.0,64204.0,0.0942]
[1724617097890,0.4553227,64206.0,64204.0,0.0942]
[1724617098092,0.10959957,64205.0,64204.0,0.0942]
[1724617098401,0.0941237,64205.0,64204.0,0.0942]
[1724617098594,0.0945237,64205.0,64204.0,0.0942]
[1724617098793,0.4553237,64205.0,64204.0,0.0942]
[1724617099595,0.4563237,64205.0,64204.0,0.0942]
[1724617100696,0.4573237,64205.0,64204.0,0.0942]
[1724617102396,0.0965237,64205.0,64204.0,0.0942]
[1724617102599,0.4573237,64205.0,64204.0,0.0942]
[1724617103899,0.0965237,64205.0,64204.0,0.0942]
[1724617104098,0.4573237,64205.0,64204.0,0.0942]
[1724617104704,0.5473237,64205.0,64204.0,0.0942]
[1724617106008,0.5473237,64205.0,64204.0,0.15632035]
[1724617106510,0.077831,64209.0,64204.0,0.99144]
[1724617106706,0.077831,64209.0,64206.0,0.15215087]
[1724617106903,0.077831,64209.0,64206.0,0.16215087]
[1724617107106,0.077831,64209.0,64207.0,0.06215087]
[1724617107306,0.077831,64209.0,64208.0,0.0004]
[1724617107506,0.077831,64209.0,64208.0,0.06255087]
[1724617107816,0.078831,64209.0,64208.0,0.14038287]
[1724617108013,0.079831,64209.0,64208.0,0.14038287]
[1724617108203,0.002,64209.0,64208.0,0.14038287]
[1724617110410,0.002,64209.0,64208.0,0.14238287]
[1724617111405,0.002,64209.0,64208.0,0.080232]
[1724617113015,0.03206549,64209.0,64208.0,0.080232]
[1724617116618,0.11099376,64209.0,64208.0,0.080232]
[1724617116819,0.14105925,64209.0,64208.0,0.080232]
[1724617118518,0.07018066,64209.0,64208.0,0.080232]
[1724617121110,0.002,64209.0,64208.0,0.080232]
[1724617122519,0.002,64209.0,64208.0,0.14240981]
[1724617124318,0.079831,64209.0,64208.0,0.14240981]
[1724617126426,0.078831,64209.0,64208.0,0.14040981]
[1724617126724,0.079831,64209.0,64208.0,0.14140981]
[1724617128130,0.1098975,64209.0,64208.0,0.079232]
[1724617128518,0.14801394,64209.0,64208.0,0.079232]
[1724617129622,0.14801841,64209.0,64208.0,0.079232]
[1724617131622,0.14701841,64209.0,64208.0,0.079232]
[1724617131932,0.14801841,64209.0,64208.0,0.0014]
[1724617133622,0.50881841,64209.0,64208.0,0.0014]
[1724617133824,0.63334956,64209.0,64208.0,0.0014]
[1724617134929,0.50881841,64209.0,64208.0,0.0014]
[1724617135520,0.55611841,64209.0,64208.0,0.0014]
[1724617136130,0.487931,64209.0,64208.0,0.0014]
[1724617136333,0.487931,64209.0,64208.0,0.04807472]
[1724617136636,0.487931,64209.0,64208.0,0.0480731]
[1724617137130,0.487931,64209.0,64208.0,0.0014]
[1724617137430,0.487931,64209.0,64208.0,0.04807114]
[1724617140226,0.487931,64209.0,64208.0,0.0014]
[1724617140439,0.487931,64209.0,64208.0,0.04806607]
[1724617142429,0.487931,64209.0,64208.0,0.0014]
[1724617142931,0.487931,64209.0,64208.0,0.04806607]
[1724617143232,0.51800012,64209.0,64208.0,0.0014]
[1724617148128,0.6269657,64209.0,64208.0,0.0014]
[1724617149438,0.5018347,64209.0,64208.0,0.0014]
[1724617149643,0.48286912,64209.0,64208.0,0.0014]
[1724617150141,0.4528,64209.0,64208.0,0.0014]
[1724617150838,0.4528,64209.0,64208.0,0.079232]
[1724617153038,0.4528,64209.0,64208.0,0.0014]
[1724617153733,0.092,64209.0,64208.0,0.0014]
[1724617153935,0.169831,64209.0,64208.0,0.0014]
[1724617158036,0.169831,64209.0,64208.0,0.04808324]
[1724617158435,0.169831,64209.0,64208.0,0.0014]
[1724617158939,0.530631,64209.0,64208.0,0.0014]
[1724617160638,0.169831,64209.0,64208.0,0.0014]
[1724617165136,0.23801707,64209.0,64208.0,0.0014]
[1724617165340,0.34003372,64209.0,64208.0,0.0014]
[1724617165542,0.23801707,64209.0,64208.0,0.0014]
[1724617166754,0.23801707,64209.0,64208.0,0.0004]
[1724617167246,0.23601707,64209.0,64208.0,0.0004]
[1724617167944,0.338012,64209.0,64208.0,0.0004]
[1724617168151,0.23601707,64209.0,64208.0,0.0004]
[1724617168342,0.3380113,64209.0,64208.0,0.0004]
[1724617168542,0.37612949,64209.0,64208.0,0.0004]
[1724617168855,0.23601707,64209.0,64208.0,0.0004]
[1724617169046,0.33801097,64209.0,64208.0,0.0004]
[1724617169251,0.37612916,64209.0,64208.0,0.0004]
[1724617169455,0.23601707,64209.0,64208.0,0.0004]
[1724617172753,0.2360131,64209.0,64208.0,0.0004]
[1724617173249,0.167831,64209.0,64208.0,0.0014]
[1724617174150,0.167831,64209.0,64208.0,0.06365007]
[1724617174350,0.167831,64209.0,64208.0,0.06265007]
[1724617174554,0.167831,64209.0,64208.0,0.06365007]
[1724617176557,0.167831,64209.0,64208.0,0.06265007]
[1724617177448,0.167831,64209.0,64208.0,0.0004]
[1724617177648,0.217631,64209.0,64208.0,0.0004]
[1724617178643,0.31103863,64209.0,64208.0,0.0004]
[1724617179552,0.217631,64209.0,64208.0,0.0004]
[1724617179752,0.31103863,64209.0,64208.0,0.0004]
[1724617180349,0.217631,64209.0,64208.0,0.0004]
[1724617180948,0.31103863,64209.0,64208.0,0.0004]
[1724617181551,0.217631,64209.0,64208.0,0.0004]
[1724617182357,0.329951,64209.0,64208.0,0.0004]
[1724617183261,0.690751,64209.0,64208.0,0.0004]
[1724617183658,0.578431,64209.0,64208.0,0.0004]
[1724617183865,0.690751,64209.0,64208.0,0.0004]
[1724617186463,0.329951,64209.0,64208.0,0.0004]
[1724617186765,0.690751,64209.0,64208.0,0.0004]
[1724617188160,0.69440744,64209.0,64208.0,0.0004]
[1724617188373,0.80672744,64209.0,64208.0,0.0004]
[1724617190967,0.81172744,64209.0,64208.0,0.0004]
[1724617192156,0.81772744,64209.0,64208.0,0.0004]
[1724617192765,0.97343281,64209.0,64208.0,0.0004]
[1724617193161,0.077837,64204.0,64203.0,0.00023348]
[1724617193365,0.19807414,64204.0,64203.0,0.00023348]
[1724617193566,0.23619621,64204.0,64203.0,0.00023348]
[1724617193965,0.23659621,64204.0,64203.0,0.00023348]
[1724617195164,0.1684032,64204.0,64203.0,0.00023348]
[1724617196171,0.5292032,64204.0,64203.0,0.00023348]
[1724617197072,0.55072361,64204.0,64203.0,0.00023348]
[1724617202179,0.18992361,64204.0,64203.0,0.00023348]
[1724617202773,0.55072361,64204.0,64203.0,0.00023348]
[1724617203169,0.25812136,64204.0,64203.0,0.00023348]
[1724617203370,0.61892136,64204.0,64203.0,0.00023348]
[1724617205779,0.61892122,64204.0,64203.0,0.00023348]
[1724617208679,0.25812122,64204.0,64203.0,0.00023348]
[1724617208880,0.61892122,64204.0,64203.0,0.00023348]
[1724617210184,0.33107664,64204.0,64203.0,0.00023348]
[1724617210482,0.64408999,64204.0,64203.0,0.00023348]
[1724617211075,0.55072361,64204.0,64203.0,0.00023348]
[1724617213075,0.18992361,64204.0,64203.0,0.00023348]
[1724617213276,0.55072361,64204.0,64203.0,0.00023348]
[1724617213684,0.18992361,64204.0,64203.0,0.00023348]
[1724617213901,0.55072361,64204.0,64203.0,0.00023348]
[1724617214381,0.62856061,64204.0,64203.0,0.00023348]
[1724617214573,0.65863536,64204.0,64203.0,0.00023348]
[1724617215382,0.65863621,64204.0,64203.0,0.00023348]
[1724617216280,0.077838,64203.0,64192.0,0.04670341]
[1724617216473,0.077852,64192.0,64191.0,0.10550341]
[1724617216675,0.0780182,64192.0,64191.0,0.10550341]
[1724617217284,0.0784182,64192.0,64191.0,0.10550341]
[1724617218276,0.14662298,64192.0,64191.0,0.0588]
[1724617218677,0.27111149,64192.0,64191.0,0.0128]
[1724617219279,0.14662298,64192.0,64191.0,0.0128]
[1724617219488,0.14762298,64192.0,64191.0,0.0138]
[1724617219679,0.14862298,64192.0,64191.0,0.0138]
[1724617219986,0.14762298,64192.0,64191.0,0.0128]
[1724617220182,0.14862298,64192.0,64191.0,0.0138]
[1724617220779,0.50942298,64192.0,64191.0,0.0138]
[1724617222378,0.14862298,64192.0,64191.0,0.0138]
[1724617222586,0.50942298,64192.0,64191.0,0.0138]
[1724617223183,0.63376596,64192.0,64191.0,0.0138]
[1724617224987,0.63376855,64192.0,64191.0,0.0138]
[1724617225188,0.65569335,64192.0,64191.0,0.0138]
[1724617225390,0.463143,64192.0,64191.0,0.0138]
[1724617226490,0.102343,64192.0,64191.0,0.0138]
[1724617226991,0.463143,64192.0,64191.0,0.0138]
[1724617227784,0.102343,64192.0,64191.0,0.0138]
[1724617227984,0.463143,64192.0,64191.0,0.0138]
[1724617228479,0.102343,64192.0,64191.0,0.0138]
[1724617228678,0.463143,64192.0,64191.0,0.0138]
[1724617231888,0.102343,64192.0,64191.0,0.0138]
[1724617232096,0.463143,64192.0,64191.0,0.0138]
[1724617233386,0.102343,64192.0,64191.0,0.0138]
[1724617233588,0.463143,64192.0,64191.0,0.0138]
[1724617237789,0.102343,64192.0,64191.0,0.0138]
[1724617238196,0.463143,64192.0,64191.0,0.0138]
[1724617240292,0.60200879,64192.0,64191.0,0.0138]
[1724617240491,0.49322183,64192.0,64191.0,0.0138]
[1724617241295,0.60200879,64192.0,64191.0,0.0138]
[1724617243406,0.49322183,64192.0,64191.0,0.0138]
[1724617244096,0.13242183,64192.0,64191.0,0.0138]
[1724617244298,0.49322183,64192.0,64191.0,0.0138]
[1724617244497,0.53135328,64192.0,64191.0,0.0138]
[1724617247407,0.60215355,64192.0,64191.0,0.0138]
[1724617248407,0.463143,64192.0,64191.0,0.06050341]
[1724617248906,0.463143,64192.0,64191.0,0.0138]
[1724617253501,0.102343,64192.0,64191.0,0.0138]
[1724617253707,0.463143,64192.0,64191.0,0.0138]
[1724617254108,0.102343,64192.0,64191.0,0.0138]
[1724617254310,0.463143,64192.0,64191.0,0.0138]
[1724617254709,0.102343,64192.0,64191.0,0.0138]
[1724617254902,0.463143,64192.0,64191.0,0.0138]
[1724617255508,0.49322079,64192.0,64191.0,0.0138]
[1724617256413,0.49222079,64192.0,64191.0,0.0138]
[1724617257415,0.60115911,64192.0,64191.0,0.0138]
[1724617257715,0.49222079,64192.0,64191.0,0.0138]
[1724617258903,0.53035212,64192.0,64191.0,0.0138]
[1724617260111,0.6546951,64192.0,64191.0,0.0138]
[1724617261516,0.6556951,64192.0,64191.0,0.0138]
[1724617261712,1.0164951,64192.0,64191.0,0.0138]
[1724617261905,1.0194951,64192.0,64191.0,0.0128]
[1724617262315,1.0194951,64192.0,64185.0,0.00027345]
[1724617262316,0.077853,64191.0,64185.0,0.00027345]
[1724617262514,0.528659,64186.0,64185.0,0.00027345]
[1724617262714,0.6676875,64186.0,64185.0,0.00027345]
[1724617263416,0.52880763,64186.0,64185.0,0.0470057]
[1724617263610,0.52880763,64186.0,64185.0,0.00027345]
[1724617265005,0.52880763,64186.0,64185.0,0.00127345]
[1724617265612,0.52980763,64186.0,64185.0,0.00127345]
[1724617266917,0.16900763,64186.0,64185.0,0.00127345]
[1724617267113,0.89060763,64186.0,64185.0,0.00127345]
[1724617269415,0.96846663,64186.0,64185.0,0.00127345]
[1724617270413,1.08058663,64186.0,64185.0,0.00127345]
[1724617275718,0.96886663,64186.0,64185.0,0.00127345]
[1724617276027,1.08058663,64186.0,64185.0,0.00127345]
[1724617276616,0.87886663,64186.0,64185.0,0.00127345]
[1724617276813,1.00272763,64186.0,64185.0,0.00127345]
[1724617280629,1.11167539,64186.0,64185.0,0.00127345]
[1724617281233,0.99995539,64186.0,64185.0,0.00127345]
[1724617281441,1.11167539,64186.0,64185.0,0.00127345]
[1724617282729,1.1216987,64186.0,64185.0,0.00127345]
[1724617282934,1.01300896,64186.0,64185.0,0.00127345]
[1724617283338,1.05114496,64186.0,64185.0,0.00127345]
[1724617284335,1.05014496,64186.0,64185.0,0.00127345]
[1724617284633,1.05114496,64186.0,64185.0,0.00127345]
[1724617284835,1.05261581,64186.0,64185.0,0.00127345]
[1724617285226,1.01447981,64186.0,64185.0,0.00127345]
[1724617285420,1.12318869,64186.0,64185.0,0.00127345]
[1724617285627,1.01447981,64186.0,64185.0,0.00127345]
[1724617289635,0.65367981,64186.0,64185.0,0.00127345]
[1724617290027,0.65416006,64186.0,64185.0,0.00127345]
[1724617290638,0.65816006,64186.0,64185.0,0.00127345]
[1724617291340,0.7513503,64186.0,64185.0,0.00127345]
[1724617292234,0.7573503,64186.0,64185.0,0.00027345]
[1724617292640,0.66416006,64186.0,64185.0,0.00027345]
[1724617293634,0.85800137,64186.0,64185.0,0.00027345]
[1724617294040,0.90580218,64186.0,64185.0,0.00027345]
[1724617294541,0.75009681,64186.0,64185.0,0.00027345]
[1724617294926,0.9056416,64186.0,64185.0,0.00027345]
[1724617295534,0.75009681,64186.0,64185.0,0.00027345]
[1724617300536,0.66416006,64186.0,64185.0,0.00027345]
[1724617303935,0.66436006,64186.0,64185.0,0.00027345]
[1724617305334,0.077868,64178.0,64177.0,0.04673225]
[1724617305535,0.438668,64178.0,64177.0,0.04673225]
[1724617305731,0.07787,64177.0,64176.0,0.04673225]
[1724617305937,0.16787,64177.0,64176.0,0.04673225]
[1724617306141,0.18010243,64177.0,64176.0,0.04673225]
[1724617306336,0.18022382,64177.0,64176.0,0.04673225]
[1724617306532,0.18062382,64177.0,64176.0,0.04673225]
[1724617306739,0.077871,64176.0,64175.0,0.0495]
[1724617307249,0.09010343,64176.0,64175.0,0.0495]
[1724617307544,0.09050343,64176.0,64175.0,0.0495]
[1724617308639,0.21498225,64176.0,64175.0,0.0495]
[1724617308845,0.25312066,64176.0,64175.0,0.0495]
[1724617309250,0.34412066,64176.0,64175.0,0.0505]
[1724617309734,0.70592066,64176.0,64175.0,0.0505]